fUST/lending_fUST_20250511
["ID","MTS","AMOUNT","RATE_DAILY","PERIOD"]
[360635069,1746912653954,-2119.75,9.863e-05,2]
[360635071,1746912653964,-4434.68,9.863e-05,2]
[360635073,1746912653974,-935.35,9.863e-05,2]
[360635075,1746912653983,-680.96,9.863e-05,2]
[360635077,1746912653992,-400.0,9.863e-05,2]
[360635079,1746912654001,-626.61,9.863e-05,2]
[360635081,1746912654010,-424.95,9.863e-05,2]
[360635083,1746912654020,-1042.16,9.863e-05,2]
[360635085,1746912654029,-2312.88,9.863e-05,2]
[360635087,1746912654039,-400.0,9.863e-05,2]
[360635089,1746912654048,-400.0,9.863e-05,2]
[360635091,1746912654058,-688.73,9.863e-05,2]
[360635093,1746912654067,-439.66,9.863e-05,2]
[360635095,1746912654077,-706.22,9.863e-05,2]
[360635097,1746912654087,-1085.41,9.863e-05,2]
[360635099,1746912654097,-671.75,9.863e-05,2]
[360635101,1746912654106,-841.55,9.863e-05,2]
[360635103,1746912654115,-400.0,9.863e-05,2]
[360635105,1746912654125,-2146.14,9.863e-05,2]
[360635107,1746912654135,-1015.72,9.863e-05,2]
[360635109,1746912654144,-6440.41,9.863e-05,2]
[360635111,1746912654154,-1037.4,9.863e-05,2]
[360635113,1746912654164,-400.0,9.863e-05,2]
[360635115,1746912654173,-440.94,9.863e-05,2]
[360635117,1746912654183,-400.0,9.863e-05,2]
[360635119,1746912654192,-4790.07,9.863e-05,2]
[360635121,1746912654202,-1429.95,9.863e-05,2]
[360635123,1746912654211,-400.0,9.863e-05,2]
[360635125,1746912654221,-400.0,9.863e-05,2]
[360635127,1746912654230,-430.02,9.863e-05,2]
[360635129,1746912654239,-400.0,9.863e-05,2]
[360635131,1746912654249,-400.0,9.863e-05,2]
[360635133,1746912654258,-400.0,9.863e-05,2]
[360635135,1746912654267,-1223.02,9.863e-05,2]
[360635137,1746912654278,-848.59,9.863e-05,2]
[360635139,1746912654287,-400.0,9.863e-05,2]
[360635141,1746912654296,-2882.98,9.863e-05,2]
[360635143,1746912654306,-513.02,9.863e-05,2]
[360635145,1746912654315,-400.0,9.863e-05,2]
[360635147,1746912654324,-463.45,9.863e-05,2]
[360635149,1746912654334,-573.32,9.863e-05,2]
[360635151,1746912654343,-1204.18,9.863e-05,2]
[360635153,1746912654353,-1967.65,9.863e-05,2]
[360635155,1746912654362,-400.0,9.863e-05,2]
[360635157,1746912654377,-3088.11,9.863e-05,2]
[360635159,1746912654386,-400.0,9.863e-05,2]
[360635161,1746912654395,-1232.95,9.863e-05,2]
[360635163,1746912654405,-1041.57,9.863e-05,2]
[360635165,1746912654415,-700.78,9.863e-05,2]
[360635167,1746912654424,-4783.86,9.863e-05,2]
[360635169,1746912654434,-407.69,9.863e-05,2]
[360635171,1746912654443,-1652.45,9.863e-05,2]
[360635173,1746912654455,-444.01,9.863e-05,2]
[360635175,1746912654464,-1176.69,9.863e-05,2]
[360635177,1746912654474,-513.96,9.863e-05,2]
[360635179,1746912654483,-400.0,9.863e-05,2]
[360635181,1746912654493,-656.69,9.863e-05,2]
[360635183,1746912654502,-400.0,9.863e-05,2]
[360635185,1746912654511,-1565.91,9.863e-05,2]
[360635187,1746912654521,-215.0738,9.921e-05,2]
[360635189,1746912654531,-203.44388447,0.0001,2]
[360635191,1746912654541,-2200.0,0.0001,2]
[360635193,1746912654550,-450.55,0.00010136,2]
[360635195,1746912654559,-514.38955106,0.00010136,2]
[360635197,1746912654568,-400.0,0.00010136,2]
[360635199,1746912654578,-400.0,0.00010136,2]
[360635201,1746912654587,-400.0,0.00010136,2]
[360635203,1746912654596,-400.0,0.00010136,2]
[360635205,1746912654606,-400.0,0.00010136,2]
[360635207,1746912654615,-400.0,0.00010136,2]
[360635209,1746912654624,-483.15,0.00010136,2]
[360635211,1746912654634,-435.59318351,0.00010136,2]
[360635213,1746912654643,-400.0,0.00010136,2]
[360635215,1746912654652,-400.0,0.00010136,2]
[360635217,1746912654662,-400.0,0.00010136,2]
[360635219,1746912654671,-400.0,0.00010136,2]
[360635221,1746912654680,-400.0,0.00010136,2]
[360635223,1746912654690,-508.57594531,0.00010136,2]
[360635225,1746912654699,-400.0,0.00010136,2]
[360635227,1746912654709,-400.0,0.00010136,2]
[360635229,1746912654719,-400.0,0.00010136,2]
[360635231,1746912654728,-400.0,0.00010136,2]
[360635233,1746912654737,-400.0,0.00010136,2]
[360635235,1746912654747,-400.0,0.00010136,2]
[360635237,1746912654756,-400.0,0.00010136,2]
[360635239,1746912654766,-400.0,0.00010136,2]
[360635241,1746912654775,-400.0,0.00010136,2]
[360635244,1746912654786,-400.0,0.00010136,2]
[360635245,1746912654796,-400.0,0.00010136,2]
[360635246,1746912654805,-400.0,0.00010136,2]
[360635247,1746912654815,-400.0,0.00010136,2]
[360635248,1746912654824,-400.0,0.00010136,2]
[360635249,1746912654834,-400.0,0.00010136,2]
[360635250,1746912654843,-767.08,0.00010136,2]
[360635251,1746912654853,-523.05,0.00010136,2]
[360635252,1746912654862,-400.0,0.00010136,2]
[360635253,1746912654872,-400.0,0.00010136,2]
[360635254,1746912654881,-400.0,0.00010136,2]
[360635255,1746912654891,-400.0,0.00010136,2]
[360635256,1746912654900,-428.69,0.00010136,2]
[360635257,1746912654909,-1231.88,0.00010136,2]
[360635258,1746912654918,-400.0,0.00010136,2]
[360635259,1746912654928,-426.86044458,0.00010136,2]
[360635261,1746912654938,-400.0,0.00010136,2]
[360635263,1746912654947,-400.0,0.00010136,2]
[360635265,1746912654956,-400.0,0.00010136,2]
[360635267,1746912654966,-400.0,0.00010136,2]
[360635269,1746912654975,-555.94,0.00010136,2]
[360635271,1746912654984,-1008.55,0.00010136,2]
[360635273,1746912654993,-400.0,0.00010136,2]
[360635275,1746912655002,-632.05,0.00010136,2]
[360635277,1746912655012,-1052.41,0.00010136,2]
[360635279,1746912655021,-400.0,0.00010136,2]
[360635281,1746912655030,-400.0,0.00010136,2]
[360635283,1746912655039,-459.64,0.00010136,2]
[360635285,1746912655049,-468.37,0.00010136,2]
[360635287,1746912655059,-400.0,0.00010136,2]
[360635289,1746912655067,-403.73,0.00010136,2]
[360635291,1746912655077,-413.92,0.00010136,2]
[360635293,1746912655086,-619.62,0.00010136,2]
[360635295,1746912655096,-695.09,0.00010136,2]
[360635297,1746912655105,-735.58,0.00010136,2]
[360635299,1746912655114,-721.89,0.00010136,2]
[360635301,1746912655124,-400.0,0.00010136,2]
[360635303,1746912655135,-1548.4,0.00010136,2]
[360635306,1746912655144,-2356.91,0.00010136,2]
[360635308,1746912655155,-794.11,0.00010136,2]
[360635310,1746912655164,-400.0,0.00010136,2]
[360635312,1746912655173,-838.55,0.00010136,2]
[360635313,1746912655182,-400.0,0.00010136,2]
[360635315,1746912655192,-400.0,0.00010136,2]
[360635317,1746912655201,-3381.21,0.00010136,2]
[360635320,1746912655210,-400.0,0.00010136,2]
[360635322,1746912655219,-2898.64,0.00010136,2]
[360635323,1746912655229,-481.84,0.00010136,2]
[360635325,1746912655238,-400.0,0.00010136,2]
[360635327,1746912655248,-400.0,0.00010136,2]
[360635329,1746912655258,-400.0,0.00010136,2]
[360635331,1746912655267,-1333.51,0.00010136,2]
[360635333,1746912655277,-400.0,0.00010136,2]
[360635335,1746912655289,-633.58,0.00010136,2]
[360635338,1746912655299,-400.0,0.00010136,2]
[360635340,1746912655309,-400.0,0.00010136,2]
[360635342,1746912655319,-400.0,0.00010136,2]
[360635344,1746912655329,-494.9,0.00010136,2]
[360635346,1746912655339,-400.0,0.00010136,2]
[360635348,1746912655349,-513.57,0.00010136,2]
[360635350,1746912655359,-802.91,0.00010136,2]
[360635352,1746912655370,-505.78,0.00010136,2]
[360635354,1746912655383,-626.66,0.00010136,2]
[360635356,1746912655393,-809.51,0.00010136,2]
[360635358,1746912655402,-400.0,0.00010136,2]
[360635360,1746912655411,-400.0,0.00010136,2]
[360635362,1746912655422,-400.0,0.00010136,2]
[360635364,1746912655432,-842.73,0.00010136,2]
[360635366,1746912655441,-697.59,0.00010136,2]
[360635368,1746912655451,-1841.44,0.00010136,2]
[360635370,1746912655460,-400.0,0.00010136,2]
[360635372,1746912655470,-788.65,0.00010136,2]
[360635374,1746912655479,-1039.37,0.00010136,2]
[360635376,1746912655489,-400.0,0.00010136,2]
[360635378,1746912655499,-569.05,0.00010136,2]
[360635380,1746912655508,-2342.17,0.00010136,2]
[360635382,1746912655518,-451.36,0.00010136,2]
[360635384,1746912655527,-695.2,0.00010136,2]
[360635386,1746912655537,-1028.56,0.00010136,2]
[360635388,1746912655548,-400.0,0.00010136,2]
[360635390,1746912655557,-498.13,0.00010136,2]
[360635392,1746912655567,-2119.75,0.00010136,2]
[360635394,1746912655577,-4434.68,0.00010136,2]
[360635396,1746912655586,-935.35,0.00010136,2]
[360635398,1746912655596,-680.96,0.00010136,2]
[360635400,1746912655605,-460.37497639,0.00010136,2]
[360635402,1746912655614,-626.61,0.00010136,2]
[360635404,1746912655624,-424.95,0.00010136,2]
[360635406,1746912655634,-1042.16,0.00010136,2]
[360635408,1746912655643,-2312.88,0.00010136,2]
[360635410,1746912655653,-400.0,0.00010136,2]
[360635412,1746912655662,-400.0,0.00010136,2]
[360635414,1746912655672,-688.73,0.00010136,2]
[360635416,1746912655682,-439.66,0.00010136,2]
[360635418,1746912655691,-706.22,0.00010136,2]
[360635420,1746912655700,-1085.41,0.00010136,2]
[360635422,1746912655710,-671.75,0.00010136,2]
[360635424,1746912655720,-841.55,0.00010136,2]
[360635426,1746912655729,-400.0,0.00010136,2]
[360635428,1746912655738,-2146.14,0.00010136,2]
[360635430,1746912655748,-1015.72,0.00010136,2]
[360635446,1746912655891,-6440.41,0.00010136,2]
[360635448,1746912655902,-1037.4,0.00010136,2]
[360635450,1746912655912,-400.0,0.00010136,2]
[360635452,1746912655921,-440.94,0.00010136,2]
[360635454,1746912655931,-400.0,0.00010136,2]
[360635456,1746912655939,-4790.07,0.00010136,2]
[360635458,1746912655948,-1429.95,0.00010136,2]
[360635460,1746912655958,-400.0,0.00010136,2]
[360635462,1746912655967,-400.0,0.00010136,2]
[360635464,1746912655976,-430.02,0.00010136,2]
[360635466,1746912655985,-400.0,0.00010136,2]
[360635468,1746912655994,-400.0,0.00010136,2]
[360635470,1746912656003,-400.0,0.00010136,2]
[360635472,1746912656012,-1223.02,0.00010136,2]
[360635474,1746912656021,-848.59,0.00010136,2]
[360635476,1746912656030,-400.0,0.00010136,2]
[360635478,1746912656039,-2882.98,0.00010136,2]
[360635480,1746912656048,-513.02,0.00010136,2]
[360635482,1746912656057,-400.0,0.00010136,2]
[360635484,1746912656066,-463.45,0.00010136,2]
[360635486,1746912656076,-573.32,0.00010136,2]
[360635488,1746912656086,-1204.18,0.00010136,2]
[360635490,1746912656095,-1967.65,0.00010136,2]
[360635492,1746912656105,-460.51224779,0.00010136,2]
[360635494,1746912656114,-3088.11,0.00010136,2]
[360635496,1746912656123,-400.0,0.00010136,2]
[360635498,1746912656133,-1232.95,0.00010136,2]
[360635500,1746912656142,-1041.57,0.00010136,2]
[360635502,1746912656152,-700.78,0.00010136,2]
[360635504,1746912656162,-4783.86,0.00010136,2]
[360635506,1746912656171,-407.69,0.00010136,2]
[360635508,1746912656180,-1652.45,0.00010136,2]
[360635510,1746912656189,-444.01,0.00010136,2]
[360635512,1746912656199,-1176.69,0.00010136,2]
[360635514,1746912656208,-513.96,0.00010136,2]
[360635516,1746912656219,-400.0,0.00010136,2]
[360635518,1746912656229,-656.69,0.00010136,2]
[360635520,1746912656238,-400.0,0.00010136,2]
[360635522,1746912656247,-1565.91,0.00010136,2]
[360635524,1746912656256,-500.0,0.00010137,2]
[360635526,1746912656266,-175.972559,0.0001036,2]
[360635528,1746912656275,-450.55,0.0001041,2]
[360635530,1746912656284,-400.0,0.0001041,2]
[360635532,1746912656293,-400.0,0.0001041,2]
[360635534,1746912656303,-400.0,0.0001041,2]
[360635536,1746912656312,-400.0,0.0001041,2]
[360635538,1746912656321,-400.0,0.0001041,2]
[360635540,1746912656330,-400.0,0.0001041,2]
[360635542,1746912656340,-483.15,0.0001041,2]
[360635544,1746912656350,-400.0,0.0001041,2]
[360635546,1746912656360,-373.73204111,0.0001041,2]
[360635548,1746912656370,-400.0,0.0001041,2]
[360635550,1746912656382,-400.0,0.0001041,2]
[360635552,1746912656392,-400.0,0.0001041,2]
[360635554,1746912656401,-400.0,0.0001041,2]
[360635556,1746912656411,-400.0,0.0001041,2]
[360635559,1746912656420,-400.0,0.0001041,2]
[360635560,1746912656430,-400.0,0.0001041,2]
[360635562,1746912656439,-400.0,0.0001041,2]
[360635564,1746912656449,-400.0,0.0001041,2]
[360635567,1746912656458,-400.0,0.0001041,2]
[360635568,1746912656468,-400.0,0.0001041,2]
[360635570,1746912656477,-400.0,0.0001041,2]
[360635573,1746912656488,-400.0,0.0001041,2]
[360635575,1746912656498,-400.0,0.0001041,2]
[360635577,1746912656508,-400.0,0.0001041,2]
[360635579,1746912656517,-400.0,0.0001041,2]
[360635581,1746912656527,-400.0,0.0001041,2]
[360635583,1746912656536,-349.37504273,0.0001041,2]
[360635585,1746912656546,-767.08,0.0001041,2]
[360635587,1746912656555,-523.05,0.0001041,2]
[360635589,1746912656565,-400.0,0.0001041,2]
[360635591,1746912656575,-400.0,0.0001041,2]
[360635593,1746912656584,-400.0,0.0001041,2]
[360635595,1746912656594,-400.0,0.0001041,2]
[360635597,1746912656603,-428.69,0.0001041,2]
[360635599,1746912656612,-1231.88,0.0001041,2]
[360635601,1746912656621,-400.0,0.0001041,2]
[360635603,1746912656632,-400.0,0.0001041,2]
[360635605,1746912656641,-400.0,0.0001041,2]
[360635607,1746912656650,-400.0,0.0001041,2]
[360635609,1746912656660,-400.0,0.0001041,2]
[360635611,1746912656671,-555.94,0.0001041,2]
[360635613,1746912656680,-1008.55,0.0001041,2]
[360635615,1746912656690,-400.0,0.0001041,2]
[360635617,1746912656699,-632.05,0.0001041,2]
[360635619,1746912656709,-1052.41,0.0001041,2]
[360635621,1746912656719,-400.0,0.0001041,2]
[360635623,1746912656728,-400.0,0.0001041,2]
[360635625,1746912656738,-459.64,0.0001041,2]
[360635627,1746912656747,-468.37,0.0001041,2]
[360635629,1746912656756,-400.0,0.0001041,2]
[360635631,1746912656766,-403.73,0.0001041,2]
[360635633,1746912656775,-413.92,0.0001041,2]
[360635635,1746912656785,-619.62,0.0001041,2]
[360635637,1746912656795,-695.09,0.0001041,2]
[360635639,1746912656804,-735.58,0.0001041,2]
[360635641,1746912656813,-721.89,0.0001041,2]
[360635643,1746912656822,-400.0,0.0001041,2]
[360635645,1746912656832,-1548.4,0.0001041,2]
[360635647,1746912656843,-2356.91,0.0001041,2]
[360635649,1746912656852,-794.11,0.0001041,2]
[360635651,1746912656864,-400.0,0.0001041,2]
[360635653,1746912656876,-838.55,0.0001041,2]
[360635655,1746912656888,-400.0,0.0001041,2]
[360635657,1746912656898,-400.0,0.0001041,2]
[360635659,1746912656907,-3381.21,0.0001041,2]
[360635661,1746912656916,-400.0,0.0001041,2]
[360635663,1746912656925,-2898.64,0.0001041,2]
[360635665,1746912656935,-481.84,0.0001041,2]
[360635667,1746912656944,-400.0,0.0001041,2]
[360635669,1746912656953,-400.0,0.0001041,2]
[360635671,1746912656963,-400.0,0.0001041,2]
[360635673,1746912656972,-1333.51,0.0001041,2]
[360635675,1746912656982,-400.0,0.0001041,2]
[360635677,1746912656992,-633.58,0.0001041,2]
[360635679,1746912657001,-400.0,0.0001041,2]
[360635681,1746912657012,-400.0,0.0001041,2]
[360635683,1746912657021,-400.0,0.0001041,2]
[360635685,1746912657030,-494.9,0.0001041,2]
[360635687,1746912657039,-400.0,0.0001041,2]
[360635689,1746912657048,-513.57,0.0001041,2]
[360635691,1746912657057,-802.91,0.0001041,2]
[360635693,1746912657067,-505.78,0.0001041,2]
[360635695,1746912657076,-626.66,0.0001041,2]
[360635697,1746912657086,-809.51,0.0001041,2]
[360635699,1746912657096,-400.0,0.0001041,2]
[360635701,1746912657105,-400.0,0.0001041,2]
[360635703,1746912657114,-400.0,0.0001041,2]
[360635705,1746912657124,-842.73,0.0001041,2]
[360635707,1746912657133,-697.59,0.0001041,2]
[360635709,1746912657143,-1841.44,0.0001041,2]
[360635711,1746912657152,-400.0,0.0001041,2]
[360635714,1746912657161,-788.65,0.0001041,2]
[360635716,1746912657170,-1039.37,0.0001041,2]
[360635718,1746912657180,-400.0,0.0001041,2]
[360635720,1746912657189,-569.05,0.0001041,2]
[360635722,1746912657199,-2342.17,0.0001041,2]
[360635724,1746912657208,-451.36,0.0001041,2]
[360635726,1746912657218,-695.2,0.0001041,2]
[360635728,1746912657227,-1028.56,0.0001041,2]
[360635730,1746912657236,-400.0,0.0001041,2]
[360635732,1746912657247,-498.13,0.0001041,2]
[360635734,1746912657257,-2119.75,0.0001041,2]
[360635736,1746912657270,-4434.68,0.0001041,2]
[360635739,1746912657283,-935.35,0.0001041,2]
[360635741,1746912657298,-680.96,0.0001041,2]
[360635744,1746912657314,-626.61,0.0001041,2]
[360635746,1746912657327,-424.95,0.0001041,2]
[360635749,1746912657340,-1042.16,0.0001041,2]
[360635751,1746912657354,-2312.88,0.0001041,2]
[360635753,1746912657370,-400.0,0.0001041,2]
[360635756,1746912657385,-400.0,0.0001041,2]
[360635758,1746912657399,-688.73,0.0001041,2]
[360635760,1746912657414,-439.66,0.0001041,2]
[360635761,1746912657430,-706.22,0.0001041,2]
[360635762,1746912657443,-1085.41,0.0001041,2]
[360635763,1746912657458,-841.55,0.0001041,2]
[360635764,1746912657472,-671.75,0.0001041,2]
[360635765,1746912657487,-400.0,0.0001041,2]
[360635766,1746912657501,-2146.14,0.0001041,2]
[360635767,1746912657515,-1015.72,0.0001041,2]
[360635768,1746912657529,-6440.41,0.0001041,2]
[360635770,1746912657542,-1037.4,0.0001041,2]
[360635772,1746912657557,-400.0,0.0001041,2]
[360635774,1746912657571,-440.94,0.0001041,2]
[360635777,1746912657585,-400.0,0.0001041,2]
[360635779,1746912657600,-4790.07,0.0001041,2]
[360635782,1746912657615,-1429.95,0.0001041,2]
[360635784,1746912657627,-400.0,0.0001041,2]
[360635786,1746912657638,-400.0,0.0001041,2]
[360635788,1746912657651,-430.02,0.0001041,2]
[360635791,1746912657669,-400.0,0.0001041,2]
[360635793,1746912657682,-400.0,0.0001041,2]
[360635795,1746912657694,-400.0,0.0001041,2]
[360635798,1746912657706,-1223.02,0.0001041,2]
[360635800,1746912657719,-848.59,0.0001041,2]
[360635803,1746912657732,-400.0,0.0001041,2]
[360635805,1746912657743,-2882.98,0.0001041,2]
[360635807,1746912657754,-513.02,0.0001041,2]
[360635809,1746912657768,-513.74227392,0.0001041,2]
[360635812,1746912657780,-463.45,0.0001041,2]
[360635814,1746912657792,-573.32,0.0001041,2]
[360635816,1746912657804,-1204.18,0.0001041,2]
[360635818,1746912657816,-1967.65,0.0001041,2]
[360635821,1746912657829,-3088.11,0.0001041,2]
[360635823,1746912657840,-400.0,0.0001041,2]
[360635825,1746912657852,-1232.95,0.0001041,2]
[360635828,1746912657865,-1041.57,0.0001041,2]
[360635830,1746912657877,-700.78,0.0001041,2]
[360635832,1746912657889,-4783.86,0.0001041,2]
[360635834,1746912657902,-407.69,0.0001041,2]
[360635837,1746912657914,-1652.45,0.0001041,2]
[360635839,1746912657926,-444.01,0.0001041,2]
[360635841,1746912657939,-1176.69,0.0001041,2]
[360635844,1746912657951,-513.96,0.0001041,2]
[360635846,1746912657964,-206.14586885,0.0001041,2]
[360635848,1746912657978,-656.69,0.0001041,2]
[360635851,1746912657991,-400.0,0.0001041,2]
[360635853,1746912658004,-1565.91,0.0001041,2]
[360635855,1746912658016,-500.0,0.00010411,2]
[360635857,1746912658029,-12619.28597579,0.00010449,2]
[360635860,1746912658042,-422.13686889,0.00010449,2]
[360635862,1746912658055,-160.0,0.00010449,2]
[360635864,1746912658068,-160.0,0.00010449,2]
[360635867,1746912658080,-842.34118046,0.0001045,2]
[360635869,1746912658093,-212.13671436,0.0001045,2]
[360635871,1746912658105,-12500.0,0.00010531,2]
[360635873,1746912658117,-12500.0,0.00010539,2]
[360635875,1746912658129,-12500.0,0.00010548,2]
[360635878,1746912658141,-12500.0,0.00010557,2]
[360635880,1746912658153,-12500.0,0.00010566,2]
[360635882,1746912658165,-12500.0,0.00010575,2]
[360635885,1746912658176,-12500.0,0.00010583,2]
[360635887,1746912658188,-12500.0,0.00010592,2]
[360635889,1746912658200,-12500.0,0.00010601,2]
[360635891,1746912658212,-12500.0,0.0001061,2]
[360635894,1746912658223,-12500.0,0.00010619,2]
[360635896,1746912658235,-12500.0,0.00010627,2]
[360635898,1746912658248,-12500.0,0.00010636,2]
[360635901,1746912658260,-12500.0,0.00010645,2]
[360635903,1746912658272,-12500.0,0.00010654,2]
[360635905,1746912658284,-12500.0,0.00010663,2]
[360635908,1746912658298,-12500.0,0.00010671,2]
[360635910,1746912658310,-12500.0,0.0001068,2]
[360635912,1746912658322,-450.55,0.00010684,2]
[360635914,1746912658335,-400.0,0.00010684,2]
[360635917,1746912658348,-250.26,0.00010684,2]
[360635919,1746912658360,-400.0,0.00010684,2]
[360635921,1746912658374,-400.0,0.00010684,2]
[360635923,1746912658386,-400.0,0.00010684,2]
[360635925,1746912658398,-400.0,0.00010684,2]
[360635928,1746912658410,-483.15,0.00010684,2]
[360635930,1746912658423,-400.0,0.00010684,2]
[360635932,1746912658434,-400.0,0.00010684,2]
[360635934,1746912658447,-400.0,0.00010684,2]
[360635937,1746912658460,-400.0,0.00010684,2]
[360635939,1746912658471,-400.0,0.00010684,2]
[360635941,1746912658482,-400.0,0.00010684,2]
[360635943,1746912658496,-400.0,0.00010684,2]
[360635946,1746912658507,-400.0,0.00010684,2]
[360635948,1746912658518,-400.0,0.00010684,2]
[360635950,1746912658530,-400.0,0.00010684,2]
[360635952,1746912658544,-400.0,0.00010684,2]
[360635955,1746912658556,-400.0,0.00010684,2]
[360635957,1746912658568,-400.0,0.00010684,2]
[360635959,1746912658581,-400.0,0.00010684,2]
[360635961,1746912658593,-400.0,0.00010684,2]
[360635964,1746912658605,-539.35860063,0.00010684,2]
[360635966,1746912658617,-413.41458865,0.00010684,2]
[360635968,1746912658629,-400.0,0.00010684,2]
[360635970,1746912658640,-767.08,0.00010684,2]
[360635973,1746912658652,-523.05,0.00010684,2]
[360635975,1746912658664,-400.0,0.00010684,2]
[360635977,1746912658676,-400.0,0.00010684,2]
[360635979,1746912658689,-400.0,0.00010684,2]
[360635982,1746912658701,-400.0,0.00010684,2]
[360635984,1746912658713,-428.69,0.00010684,2]
[360635986,1746912658724,-1231.88,0.00010684,2]
[360635988,1746912658736,-1000.0,0.00010684,2]
[360635991,1746912658748,-1000.0,0.00010684,2]
[360635993,1746912658760,-1000.0,0.00010684,2]
[360635995,1746912658771,-1000.0,0.00010684,2]
[360635997,1746912658782,-1000.0,0.00010684,2]
[360636000,1746912658796,-1000.0,0.00010684,2]
[360636002,1746912658807,-1000.0,0.00010684,2]
[360636004,1746912658818,-1000.0,0.00010684,2]
[360636006,1746912658830,-791.73442655,0.00010684,2]
[360636009,1746912658842,-400.0,0.00010684,2]
[360636011,1746912658854,-200.0,0.00010684,2]
[360636013,1746912658866,-400.0,0.00010684,2]
[360636016,1746912658877,-400.0,0.00010684,2]
[360636018,1746912658889,-400.0,0.00010684,2]
[360636020,1746912658900,-555.94,0.00010684,2]
[360636022,1746912658912,-1008.55,0.00010684,2]
[360636025,1746912658924,-400.0,0.00010684,2]
[360636027,1746912658935,-632.05,0.00010684,2]
[360636029,1746912658947,-1052.41,0.00010684,2]
[360636032,1746912658959,-400.0,0.00010684,2]
[360636034,1746912658971,-400.0,0.00010684,2]
[360636036,1746912658982,-459.64,0.00010684,2]
[360636038,1746912658993,-468.37,0.00010684,2]
[360636041,1746912659005,-403.73,0.00010684,2]
[360636043,1746912659017,-541.75440969,0.00010684,2]
[360636045,1746912659029,-413.92,0.00010684,2]
[360636047,1746912659040,-619.62,0.00010684,2]
[360636050,1746912659052,-695.09,0.00010684,2]
[360636074,1746912659259,-735.58,0.00010684,2]
[360636077,1746912659286,-721.89,0.00010684,2]
[360636079,1746912659295,-400.0,0.00010684,2]
[360636081,1746912659305,-1548.4,0.00010684,2]
[360636083,1746912659315,-2356.91,0.00010684,2]
[360636085,1746912659324,-794.11,0.00010684,2]
[360636087,1746912659334,-400.0,0.00010684,2]
[360636089,1746912659344,-838.55,0.00010684,2]
[360636091,1746912659354,-400.0,0.00010684,2]
[360636093,1746912659364,-400.0,0.00010684,2]
[360636095,1746912659376,-3381.21,0.00010684,2]
[360636097,1746912659386,-400.0,0.00010684,2]
[360636099,1746912659395,-2898.64,0.00010684,2]
[360636101,1746912659406,-481.84,0.00010684,2]
[360636103,1746912659415,-400.0,0.00010684,2]
[360636104,1746912659424,-400.0,0.00010684,2]
[360636107,1746912659435,-400.0,0.00010684,2]
[360636109,1746912659444,-1333.51,0.00010684,2]
[360636111,1746912659456,-400.0,0.00010684,2]
[360636112,1746912659468,-633.58,0.00010684,2]
[360636114,1746912659477,-487.68,0.00010684,2]
[360636117,1746912659489,-400.0,0.00010684,2]
[360636118,1746912659498,-400.0,0.00010684,2]
[360636120,1746912659510,-494.9,0.00010684,2]
[360636122,1746912659519,-368.0407436,0.00010684,2]